bitfinex/quotes_ETHUSD_20250731
["timestamp","ask_amount","ask_price","bid_price","bid_amount"]
[1753943828361,0.24451828,3868.9,3868.8,7.39748081]
[1753943828871,0.24451828,3868.9,3868.8,7.51238081]
[1753943829160,0.24451828,3868.9,3868.8,8.95720487]
[1753943829774,0.002,3868.9,3868.8,8.95720487]
[1753943830640,0.002,3868.9,3868.8,5.04420487]
[1753943830845,0.002,3868.9,3868.8,8.96120487]
[1753943831151,0.002,3868.9,3868.8,3.59450487]
[1753943831336,0.002,3868.9,3868.8,6.50278081]
[1753943833444,0.24420194,3868.9,3868.8,6.50278081]
[1753943833772,0.24420194,3868.9,3868.8,6.96738081]
[1753943835081,0.24420194,3868.9,3868.8,6.96638081]
[1753943836890,0.002,3868.9,3868.8,6.96638081]
[1753943837066,0.24421508,3868.9,3868.8,7.96511487]
[1753943840388,0.24421508,3868.9,3868.8,8.40021487]
[1753943844484,0.002,3868.9,3868.8,8.51511487]
[1753943844803,0.002,3868.9,3868.8,8.95021487]
[1753943850817,0.002,3868.9,3868.8,8.94721487]
[1753943855631,0.002,3868.9,3868.8,4.13351487]
[1753943855838,0.002,3868.9,3868.8,8.52411487]
[1753943856733,0.002,3868.9,3868.8,4.13351487]
[1753943856932,0.002,3868.9,3868.8,8.04551487]
[1753943857232,0.4603,3868.9,3868.8,8.04551487]
[1753943857433,0.002,3868.9,3868.8,8.04551487]
[1753943857839,0.002,3868.9,3868.8,8.04651487]
[1753943859130,0.002,3868.9,3868.8,8.52511487]
[1753943859513,0.002,3868.9,3868.8,8.04651487]
[1753943859937,0.002,3868.9,3868.8,4.13451487]
[1753943860236,0.002,3868.9,3868.8,8.04651487]
[1753943862619,0.002,3868.9,3868.8,8.52511487]
[1753943863150,0.002,3868.9,3868.8,4.13451487]
[1753943863445,0.002,3868.9,3868.8,8.04651487]
[1753943863852,0.002,3868.9,3868.8,8.52511487]
[1753943864356,0.002,3868.9,3868.8,8.98541487]
[1753943871157,1e-08,3868.9,3868.8,11.98541487]
[1753943871472,0.002,3869.3,3869.2,3.13451359]
[1753943871771,0.002,3869.3,3869.2,7.61842415]
[1753943871942,1e-08,3869.3,3869.2,8.47732415]
[1753943879451,0.12878489,3870.3,3869.2,8.47732415]
[1753943879452,0.4603,3871.8,3871.1,2.58324507]
[1753943879763,0.94711882,3871.7,3871.5,2.58293589]
[1753943880086,0.87693008,3871.7,3871.6,1.39924969]
[1753943880294,0.87693008,3871.7,3871.6,3.915]
[1753943880295,1.36111298,3871.7,3871.6,3.915]
[1753943880585,1.16329146,3871.7,3871.6,3.915]
[1753943881148,5.98547348,3871.7,3871.6,3.915]
[1753943881649,1.16329146,3871.7,3871.6,3.915]
[1753943883582,4.16329146,3871.7,3869.1,2.58454998]
[1753943883782,4.82218202,3871.0,3870.6,2.58354667]
[1753943883981,0.458,3870.9,3870.7,3.92]
[1753943884187,0.458,3870.9,3870.0,6.21]
[1753943884188,0.914,3870.9,3870.8,3.922]
[1753943886184,0.456,3870.9,3870.8,3.922]
[1753943886386,0.914,3870.9,3870.8,3.922]
[1753943887418,0.456,3870.9,3870.8,3.922]
[1753943888477,0.456,3870.9,3870.0,6.21]
[1753943888680,0.458,3870.8,3870.1,4.9477]
[1753943888862,0.458,3870.8,3870.4,2.58365556]
[1753943889065,0.456,3870.7,3870.5,3.92]
[1753943889401,0.456,3870.6,3870.5,6.50364552]
[1753943889978,0.456,3870.9,3870.6,2.58353766]
[1753943890178,5.28018202,3871.1,3870.7,3.92]
[1753943890380,0.456,3870.8,3870.7,3.92]
[1753943892022,0.456,3870.8,3869.6,2.58420257]
[1753943892023,3.0,3870.7,3869.6,2.58420257]
[1753943892235,2.58343774,3870.9,3869.2,0.57191056]
[1753943892236,4.82218202,3870.0,3869.7,4.06]
[1753943892517,0.456,3870.6,3869.8,4.501]
[1753943892669,0.456,3870.6,3870.2,2.58380588]
[1753943892871,0.456,3870.6,3870.3,4.061]
[1753943893179,0.456,3870.5,3870.3,4.061]
[1753943893367,0.456,3870.4,3870.3,4.061]
[1753943894696,0.456,3870.4,3870.3,6.64477903]
[1753943895296,4.82218202,3870.6,3870.3,6.64473346]
[1753943895817,5.27818202,3870.6,3870.3,6.64473346]
[1753943896020,0.456,3870.5,3870.3,4.061]
[1753943896518,0.456,3870.5,3870.4,3.922]
[1753943898097,0.456,3870.5,3870.4,6.50571227]
[1753943898289,0.456,3870.5,3870.4,3.922]
[1753943898687,0.456,3870.5,3870.4,6.50571227]
[1753943898915,0.456,3870.5,3870.4,3.922]
[1753943899218,0.69763367,3870.5,3870.4,3.922]
[1753943899523,1.15563367,3870.5,3870.2,2.58381833]
[1753943899683,0.458,3870.5,3870.3,3.92]
[1753943899879,0.13168311,3870.6,3870.3,2.58372488]
[1753943900117,0.69766181,3870.5,3870.4,3.92]
[1753943900519,0.24166181,3870.5,3870.4,6.98141227]
[1753943900881,0.24166181,3870.5,3870.4,6.98241227]
[1753943902084,3.0,3870.8,3870.5,2.58359714]
[1753943902286,3.0,3870.8,3870.6,3.92]
[1753943902287,0.24172575,3870.7,3870.6,3.92]
[1753943902599,0.24172575,3870.7,3870.6,6.50357877]
[1753943903308,0.24172575,3870.7,3870.6,6.98127877]
[1753943903511,0.24172575,3870.7,3870.6,6.50357877]
[1753943904017,0.24172575,3870.7,3870.6,3.92]
[1753943904620,0.24172575,3870.7,3870.6,6.50357877]
[1753943904801,0.24172575,3870.7,3870.6,7.42327877]
[1753943905003,0.12712394,3870.8,3870.7,2.58351202]
[1753943905325,0.24178388,3870.8,3870.7,3.06121202]
[1753943905834,0.24178388,3870.8,3870.7,0.4777]
[1753943906003,0.24178388,3870.8,3870.7,3.06121202]
[1753943906919,0.24178388,3870.8,3870.7,3.50321202]
[1753943907788,0.456,3871.2,3870.9,2.58334557]
[1753943908108,0.24185082,3871.1,3871.0,6.5023118]
[1753943908839,0.24185082,3871.1,3871.0,3.919]
[1753943908997,0.69785082,3871.1,3871.0,3.919]
[1753943909706,0.69785082,3871.1,3871.0,3.92]
[1753943912339,0.24185082,3871.1,3871.0,3.92]
[1753943913446,0.24185082,3871.1,3871.0,4.3809]
[1753943913739,0.24185082,3871.1,3871.0,7.4164118]
[1753943914520,0.37218544,3871.1,3871.0,7.4164118]
[1753943914703,0.24185082,3871.1,3871.0,8.41639673]
[1753943915737,0.002,3871.7,3871.5,2.58293832]
[1753943915938,0.002,3871.7,3871.6,3.919]
[1753943916140,0.24401006,3871.7,3871.6,6.50191145]
[1753943916440,0.24394559,3871.7,3871.6,8.32350167]
[1753943916738,0.24394559,3871.7,3871.6,6.96281145]
[1753943917206,0.24394559,3871.7,3871.6,3.04381145]
[1753943917407,0.24394559,3871.7,3871.6,6.96981145]
[1753943917908,0.002,3871.7,3871.6,6.96981145]
[1753943918441,0.002,3871.7,3871.6,7.42201145]
[1753943918938,0.002,3871.7,3871.6,6.96981145]
[1753943919650,0.002,3871.7,3871.6,7.42201145]
[1753943920612,0.002,3871.7,3871.6,6.96981145]
[1753943920941,0.002,3871.7,3871.6,7.92509167]
[1753943922038,0.002,3871.7,3871.6,3.926]
[1753943922401,0.4439,3871.7,3871.6,3.926]
[1753943924331,0.002,3871.7,3871.6,6.96981145]
[1753943926965,0.002,3871.7,3871.6,6.99781145]
[1753943927129,0.4439,3871.7,3871.2,0.4609]
[1753943927335,4.82218202,3871.5,3871.3,3.93]
[1753943927653,5.26408202,3871.5,3871.1,2.58323164]
[1753943927847,5.26408202,3871.5,3871.2,3.93]
[1753943928046,5.26408202,3871.5,3871.2,4.3909]
[1753943928561,5.26408202,3871.5,3871.2,0.4609]
[1753943928759,5.26408202,3871.5,3871.3,3.93]
[1753943928969,4.82218202,3871.5,3871.4,3.93]
[1753943929183,4.82218202,3871.5,3871.0,0.001]
[1753943929184,5.35068022,3871.5,3871.0,0.001]
[1753943929473,4.82218202,3871.2,3871.1,3.93]
[1753943930166,4.82218202,3871.2,3871.1,4.3909]
[1753943931177,3.93,3872.5,3872.2,85.44504986]
[1753943931363,4.82218202,3872.3,3872.2,83.34973531]
[1753943931563,7.64620951,3872.3,3872.2,71.53013506]
[1753943931777,7.64620951,3872.3,3872.2,68.73622529]
[1753943931990,8.09502436,3872.3,3872.2,68.73622529]
[1753943932479,8.09502436,3872.3,3872.2,59.73663756]
[1753943933275,11.57142436,3872.3,3872.2,59.73663756]
[1753943933596,11.57142436,3872.3,3872.2,50.73704983]
[1753943934459,11.57142436,3872.3,3872.2,41.7374621]
[1753943935178,8.57142436,3872.3,3872.2,41.7374621]
[1753943935367,8.81319194,3872.3,3872.2,41.7374621]
[1753943935570,11.81319194,3872.3,3872.2,41.7374621]
[1753943936178,11.81319194,3872.3,3872.2,41.56931249]
[1753943936891,15.74719194,3872.3,3872.2,41.56931249]
[1753943937792,15.74719194,3872.3,3872.2,38.77538509]
[1753943938154,16.52350594,3872.3,3872.2,38.77538509]
[1753943938350,16.04710594,3872.3,3872.2,38.77538509]
[1753943938646,10.92500992,3872.3,3872.2,38.52314928]
[1753943939084,10.92505944,3872.3,3872.2,38.52314928]
[1753943939986,10.89055944,3872.3,3872.2,38.52314928]
[1753943941199,10.64874234,3872.3,3872.2,38.52314928]
[1753943941402,10.44867918,3872.3,3872.2,36.42782842]
[1753943941767,6.51467918,3872.3,3872.2,36.42782842]
[1753943941983,6.95657918,3872.3,3872.2,36.42782842]
[1753943944392,6.51473338,3872.3,3872.2,36.42782842]
[1753943944591,6.51473338,3872.3,3872.2,36.91782842]
[1753943945097,6.51673338,3872.3,3872.2,36.91782842]
[1753943945788,6.51673338,3872.3,3872.2,36.42782842]
[1753943948170,6.94573338,3872.3,3872.2,36.42782842]
[1753943948994,7.72200138,3872.3,3872.2,36.42782842]
[1753943951190,7.29335155,3872.3,3872.2,36.25968236]
[1753943951394,7.29335155,3872.3,3872.2,34.1643241]
[1753943954580,7.72235155,3872.3,3872.2,34.1643241]
[1753943955172,7.29335155,3872.3,3872.2,33.91210301]
[1753943955413,7.29335155,3872.3,3872.2,31.11826927]
[1753943959312,7.72268769,3872.3,3872.2,31.11826927]
[1753943959911,7.29368769,3872.3,3872.2,31.11826927]
[1753943961414,7.29368769,3872.3,3872.2,28.32443286]
[1753943963435,7.29368769,3872.3,3872.2,28.81443286]
[1753943964535,7.55258769,3872.3,3872.2,28.81443286]
[1753943964874,7.29368769,3872.3,3872.2,28.81443286]
[1753943965236,7.29368769,3872.3,3872.2,28.56221083]
[1753943965433,7.29368769,3872.3,3872.2,28.07221083]
[1753943966303,7.29368769,3872.3,3872.2,27.90406097]
[1753943967413,7.29368769,3872.3,3872.2,25.11018594]
[1753943969347,7.29368769,3872.3,3872.2,25.60018594]
[1753943970540,7.29368769,3872.3,3872.2,25.11018594]
[1753943971346,7.29381324,3872.3,3872.2,25.11018594]
[1753943971863,2.58271133,3871.9,3871.8,0.001]
[1753943972010,9.99099718,3871.9,3871.8,0.001]
[1753943972647,10.09452718,3871.9,3871.8,0.001]
[1753943973023,5.58291145,3871.6,3871.5,0.49]
[1753943973221,5.58304489,3871.4,3871.3,0.001]
[1753943973435,6.06733074,3871.4,3871.3,0.001]
[1753943973641,6.49653074,3871.4,3871.3,0.001]
[1753943973849,6.49653074,3871.4,3871.3,0.4725]
[1753943974158,6.49653074,3871.4,3871.3,0.9347]
[1753943974454,6.7547578,3871.4,3871.3,0.9347]
[1753943975155,6.7547578,3871.4,3871.3,0.68243742]
[1753943977323,10.6787578,3871.4,3871.3,0.22023742]
[1753943978061,10.91683164,3871.4,3871.3,0.68243742]
[1753943978941,10.91683164,3871.4,3871.3,0.22023742]
[1753943979895,10.91665243,3871.4,3871.3,0.68243742]
[1753943980071,10.67459911,3871.4,3871.3,0.68243742]
[1753943981064,10.91664717,3871.4,3871.3,0.68243742]
[1753943981247,10.67459648,3871.4,3871.3,0.68243742]
[1753943981641,6.99264237,3871.4,3871.3,0.51426252]
[1753943983069,2.58324507,3871.1,3871.0,0.001]
[1753943983247,3.06734165,3871.1,3871.0,0.4632]
[1753943983835,3.06734165,3871.1,3871.0,0.9347]
[1753943984466,3.0672761,3871.1,3871.0,0.9347]
[1753943985350,0.48403103,3871.1,3871.0,0.9347]
[1753943985658,0.48403103,3871.1,3871.0,1.42037]
[1753943985834,0.24204829,3871.1,3871.0,1.42037]
[1753943986033,0.24204829,3871.1,3871.0,0.9347]
[1753943986785,0.4840134,3871.1,3871.0,0.9347]
[1753943987441,0.24204829,3871.1,3871.0,0.9347]
[1753943991078,0.24198966,3871.1,3871.0,0.9347]
[1753943992179,0.47194701,3871.1,3871.0,0.9347]
[1753943993449,0.24198966,3871.1,3871.0,0.9347]
[1753943996251,0.24207094,3871.1,3871.0,4.8547]
[1753944000018,0.24207094,3871.1,3871.0,5.59851395]
[1753944000324,0.24207094,3871.1,3871.0,8.18182575]
[1753944001411,0.24207094,3871.1,3871.0,5.59851395]
[1753944002778,0.24207094,3871.1,3871.0,1.67851395]
[1753944002977,0.24207094,3871.1,3871.0,4.8527]
[1753944004377,0.24207094,3871.1,3871.0,4.3905]
[1753944004702,0.24207094,3871.1,3871.0,4.8492]
[1753944005512,0.24207094,3871.1,3871.0,4.8482]
[1753944008612,0.24207094,3871.1,3871.0,0.9312]
[1753944008812,0.24207094,3871.1,3871.0,4.8482]
[1753944010742,0.24207094,3871.1,3871.0,7.4315118]
[1753944011541,0.24207094,3871.1,3871.0,4.8482]
[1753944011841,0.24207094,3871.1,3871.0,7.4315118]
[1753944012634,0.24207094,3871.1,3871.0,8.91522523]
[1753944014209,0.002,3871.3,3871.1,2.58318202]
[1753944014447,0.002,3871.3,3871.2,6.49817834]
[1753944014645,0.24411431,3871.3,3871.2,7.40747834]
[1753944016021,0.24411431,3871.3,3871.2,12.22966036]
[1753944016542,0.002,3871.3,3871.2,12.22966036]
[1753944016745,0.24412238,3871.3,3871.2,12.22966036]
[1753944017492,0.24412238,3871.3,3871.2,13.85942892]
[1753944018220,0.24410656,3871.3,3871.2,13.85942892]
[1753944023353,0.002,3871.3,3871.2,13.85942892]
[1753944032976,0.002,3871.3,3871.2,9.94442892]
[1753944033137,0.002,3871.3,3871.2,13.85942892]
[1753944033333,0.002,3871.3,3871.2,14.40942892]
[1753944038783,0.002,3871.3,3871.2,17.28109464]
[1753944043709,0.002,3871.3,3871.2,20.28109464]
[1753944047015,0.002,3871.3,3871.2,17.39556982]
[1753944047832,0.002,3871.7,3871.6,6.13291145]
[1753944047982,0.002,3871.7,3871.6,16.10483668]
[1753944048177,0.002,3871.7,3871.6,17.02343668]
[1753944057277,0.002,3871.7,3871.6,23.22943668]
[1753944059434,0.002,3871.7,3871.6,18.01883668]
[1753944059653,0.002,3871.7,3871.6,21.93183668]
[1753944060054,0.002,3871.7,3871.6,22.41363668]
[1753944060931,0.002,3871.7,3871.6,22.85043668]
[1753944064678,0.002,3871.7,3871.6,18.93743668]
[1753944064964,0.002,3871.7,3871.6,22.85043668]
[1753944068308,0.002,3872.1,3872.0,5.58264462]
[1753944068488,0.002,3872.1,3872.0,14.30396754]
[1753944068689,0.002,3872.1,3872.0,15.27196754]
[1753944069198,0.002,3872.1,3872.0,15.82196754]
[1753944069700,0.24190247,3873.2,3872.2,2.58251123]
[1753944069701,0.24190247,3873.1,3872.2,2.58251123]
[1753944069901,0.24190247,3873.0,3872.2,11.69095911]
[1753944070103,0.24190247,3872.9,3872.2,12.65895911]
[1753944070310,1e-08,3872.3,3872.2,13.20895911]
[1753944079628,1e-08,3872.3,3872.2,12.23995911]
[1753944079821,4.80832292,3875.7,3874.0,2.58125905]
[1753944080059,0.48342684,3875.1,3874.1,3.912]
[1753944080257,0.48342684,3875.0,3874.1,3.912]
[1753944080465,0.48342684,3874.9,3874.2,2.58116006]
[1753944080627,0.48326736,3874.8,3874.3,3.912]
[1753944080829,1.09076736,3874.7,3874.3,3.912]
[1753944081167,1.09076736,3874.6,3874.3,3.912]
[1753944081366,0.24163368,3874.5,3874.3,6.49309603]
[1753944081570,0.24163368,3874.4,3874.3,6.49309603]
[1753944081884,0.84908029,3874.4,3874.3,6.49309603]
[1753944083765,0.84908029,3874.4,3874.3,3.912]
[1753944084356,0.84908029,3874.4,3874.3,6.49311142]
[1753944086555,0.84908029,3874.4,3874.3,3.912]
[1753944088285,0.98921161,3874.4,3874.3,3.912]
[1753944089973,0.98896707,3874.4,3874.3,3.912]
[1753944090178,0.98896707,3874.4,3874.0,3.911]
[1753944090382,0.24133575,3874.3,3874.0,3.911]
[1753944090559,0.24133575,3874.2,3874.0,3.911]
[1753944090754,1.14613575,3874.1,3874.0,3.911]
[1753944091354,0.69533575,3874.1,3874.0,3.911]
[1753944091545,0.24133575,3874.1,3874.0,3.911]
[1753944092063,0.24133575,3874.1,3874.0,6.4923113]
[1753944092824,0.24135387,3874.1,3874.0,6.4923113]
[1753944093919,0.24135387,3874.1,3874.0,6.9483113]
[1753944094120,0.24135387,3874.1,3874.0,7.4138113]
[1753944095224,0.13493478,3874.5,3874.4,2.5810448]
[1753944095409,0.37636258,3874.5,3874.4,6.4920448]
[1753944096210,0.37636258,3874.5,3874.4,3.911]
[1753944098829,0.37645656,3874.5,3874.4,3.911]
[1753944099547,0.37648091,3874.5,3874.4,3.911]
[1753944099724,0.37648091,3874.5,3874.4,6.4920448]
[1753944100025,0.37648091,3874.5,3874.4,3.911]
[1753944100253,0.37648091,3874.5,3874.4,6.4920448]
[1753944103335,0.37656948,3874.5,3874.4,6.4920448]
[1753944104043,0.37656948,3874.5,3874.4,3.911]
[1753944104631,0.13493478,3874.5,3873.9,3.03734185]
[1753944104836,0.24170329,3874.4,3874.2,2.58117055]
[1753944105026,0.13493478,3874.5,3874.3,6.49210895]
[1753944105229,0.24170334,3874.4,3874.3,6.49210895]
[1753944106318,0.24170334,3874.4,3874.3,6.94810895]
[1753944106749,0.13493478,3874.5,3874.3,6.94810895]
[1753944106951,0.24180241,3874.4,3874.3,6.94810895]
[1753944107449,0.13493478,3874.5,3874.3,6.94810895]
[1753944107612,0.24187187,3874.4,3874.3,4.367]
[1753944108453,0.24187187,3874.4,3874.3,6.94811142]
[1753944108752,0.24187187,3874.4,3874.3,6.49211142]
[1753944109056,0.24187187,3874.4,3874.3,7.41361142]
[1753944110327,0.24187187,3874.4,3874.3,7.69810136]
[1753944111254,0.24187187,3874.4,3874.3,8.24810136]
[1753944112176,0.24197691,3874.4,3874.3,7.41361046]
[1753944114773,0.24197691,3874.4,3874.3,7.96361046]
[1753944115856,0.24197691,3874.4,3874.3,4.05261046]
[1753944116058,0.24197691,3874.4,3874.3,7.96261046]
[1753944116483,0.81227845,3875.3,3874.7,2.58080926]
[1753944116778,0.2419347,3875.2,3874.8,3.91]
[1753944116953,0.2419347,3875.1,3874.8,3.91]
[1753944117159,0.2419347,3875.0,3874.8,3.91]
[1753944117345,0.2419347,3874.9,3874.8,3.91]
[1753944119872,0.2419347,3874.9,3874.8,4.366]
[1753944120452,0.2419347,3874.9,3874.8,3.91]
[1753944122184,0.2419347,3874.9,3874.8,4.366]
[1753944124574,0.241948,3874.9,3874.8,4.366]
[1753944125393,0.241948,3874.9,3874.8,6.94677836]
[1753944125989,0.241948,3874.9,3874.8,4.366]
[1753944126690,0.241948,3874.9,3874.8,6.94677836]
[1753944126990,0.241948,3874.9,3874.8,4.366]
[1753944127352,0.241948,3874.9,3874.8,4.8251]
[1753944127805,0.241948,3874.9,3874.8,3.91]
[1753944128090,0.241948,3874.9,3874.8,4.8438]
[1753944128595,0.241948,3874.9,3874.8,4.3847]
[1753944129091,0.241948,3874.9,3874.8,3.91]
[1753944129398,0.24193028,3874.9,3874.8,3.91]
[1753944129556,0.24193028,3874.9,3874.8,4.3847]
[1753944130983,0.24193028,3874.9,3874.8,3.91]
[1753944131560,0.69503028,3874.9,3874.8,3.909]
[1753944131761,1.14903028,3874.9,3874.8,3.909]
[1753944132291,0.69593028,3874.9,3874.8,3.909]
[1753944132595,0.24193028,3874.9,3874.8,3.909]
[1753944138515,0.24193028,3874.9,3874.8,4.3837]
[1753944139500,0.37685328,3874.9,3874.8,4.8428]
[1753944139808,0.37685328,3874.9,3874.8,3.909]
[1753944140020,0.37685328,3874.9,3874.8,4.3837]
[1753944141489,0.24193028,3874.9,3874.8,4.3837]
[1753944142601,0.24193028,3874.9,3874.8,3.909]
[1753944142917,0.24193028,3874.9,3874.8,7.90785836]
[1753944146994,0.24214257,3874.9,3874.8,7.90785836]
[1753944148122,0.24214257,3874.9,3874.8,6.48977836]
[1753944148616,0.24214257,3874.9,3874.8,7.42357836]
[1753944151036,0.24214257,3874.9,3874.8,4.3837]
[1753944151236,0.454,3875.1,3874.8,3.909]
[1753944151556,0.24206707,3875.0,3874.8,6.48976922]
[1753944151718,0.24206707,3874.9,3874.8,6.48976922]
[1753944151923,0.24206707,3874.9,3874.8,7.49021703]
[1753944152450,0.24206707,3874.9,3874.8,7.96491703]
[1753944153662,0.24206707,3874.9,3874.8,8.40771703]
[1753944154011,0.24206707,3874.9,3874.8,8.40772617]
[1753944155910,0.002,3875.3,3874.9,2.58065651]
[1753944156148,0.24200785,3875.2,3874.9,0.9145]
[1753944156362,0.24200785,3875.1,3875.0,3.909]
[1753944156566,0.24200785,3875.1,3875.0,4.3807]
[1753944157146,0.37691773,3875.1,3875.0,4.3807]
[1753944159729,0.24200785,3875.1,3875.0,4.8235]
[1753944160432,0.24200785,3875.1,3875.0,6.48964516]
[1753944160612,0.24200785,3875.1,3875.0,4.8235]
[1753944161413,0.24200785,3875.1,3875.0,4.3807]
[1753944161618,0.24200785,3875.1,3874.0,2.58125386]
[1753944161824,0.24200785,3875.0,3874.4,0.4428]
[1753944162154,0.24200785,3874.9,3874.6,2.58085598]
[1753944162326,0.24200785,3874.8,3874.1,0.4717]
[1753944162533,0.002,3875.3,3874.2,3.908]
[1753944162534,0.24200785,3874.7,3874.2,3.908]
[1753944162780,0.24200785,3874.6,3874.2,6.48912376]
[1753944162974,0.24200785,3874.5,3874.3,0.4717]
[1753944163286,0.9074,3874.9,3874.4,4.3797]
[1753944163489,0.24201762,3874.8,3874.5,3.908]
[1753944163774,0.24201762,3874.7,3874.6,3.908]
[1753944164126,0.24201762,3874.7,3874.6,6.908]
[1753944164356,0.24201762,3874.7,3874.6,7.44286157]
[1753944164658,0.24201762,3874.7,3874.6,7.88566157]
[1753944164870,0.002,3875.3,3874.7,2.58082248]
[1753944165025,0.24201634,3875.2,3874.8,3.927]
[1753944165225,0.24201634,3875.1,3874.9,0.4717]
[1753944165466,0.32469686,3875.3,3875.0,3.927]
[1753944165761,0.24202337,3875.2,3875.0,3.927]
[1753944166058,0.24202337,3875.1,3875.0,3.927]
[1753944166658,0.24202337,3875.1,3875.0,4.3987]
[1753944167960,0.24202337,3875.1,3875.0,4.8415]
[1753944168102,0.24202337,3875.1,3875.0,7.42214516]
[1753944168403,0.002,3875.3,3875.0,7.42212898]
[1753944168701,0.24205072,3875.2,3875.1,0.9145]
[1753944168902,0.24205072,3875.2,3875.1,4.8405]
[1753944169104,0.002,3875.3,3875.1,4.8405]
[1753944169295,0.002,3875.3,3875.1,4.3688]
[1753944169469,0.002,3875.3,3875.2,0.4717]
[1753944169670,0.002,3875.3,3875.2,0.9145]
[1753944170904,0.2440725,3875.3,3875.2,0.9145]
[1753944171426,0.002,3875.3,3875.2,0.9145]
[1753944174673,0.24410305,3875.3,3875.2,0.9145]
[1753944175874,0.24410305,3875.3,3875.2,0.4717]
[1753944176800,0.24410305,3875.3,3875.2,0.9145]
[1753944177709,0.24410305,3875.3,3875.2,0.4717]
[1753944178005,0.24410305,3875.3,3875.1,3.926]
[1753944178312,0.24210305,3875.2,3875.1,3.926]
[1753944179505,0.24210305,3875.2,3875.1,4.8405]
[1753944179672,0.24210305,3875.2,3875.1,4.3977]
[1753944182100,0.24210305,3875.2,3875.1,8.16320134]
[1753944182615,0.002,3875.3,3875.2,2.58051197]
[1753944182807,0.24403619,3875.3,3875.2,2.58051197]
[1753944183111,0.24403619,3875.3,3875.2,3.49501197]
[1753944191327,0.002,3875.3,3875.2,3.49501197]
[1753944191629,0.002,3875.3,3875.2,5.05021559]
[1753944194389,0.002,3875.3,3875.2,5.60021559]
[1753944195191,0.002,3875.3,3875.2,8.60021559]
[1753944205411,0.002,3875.3,3875.2,7.68571559]
[1753944205611,0.002,3875.3,3875.2,11.59871559]
[1753944205924,0.002,3875.3,3875.2,12.50041559]
[1753944206727,0.002,3875.3,3875.2,16.40703851]
[1753944206929,0.002,3875.3,3875.2,17.30873851]
[1753944214324,0.002,3875.3,3875.2,17.30167051]
[1753944215764,0.002,3875.3,3875.2,12.49334759]
[1753944215917,0.002,3875.3,3875.2,17.30167051]
[1753944217427,0.002,3875.3,3875.2,17.29867051]
[1753944220660,0.002,3875.7,3875.6,10.93856855]
[1753944220863,0.002,3875.7,3875.6,16.45750225]
[1753944221163,0.002,3875.7,3875.6,17.40450225]
[1753944221574,0.002,3875.7,3875.6,13.49550225]
[1753944221861,0.002,3875.7,3875.6,17.40450225]
[1753944222229,0.24182443,3876.4,3875.6,7.36525662]
[1753944222459,0.69582205,3876.3,3875.9,0.55]
[1753944222662,1.14332205,3876.2,3876.1,2.57991279]
[1753944223966,0.9015,3876.2,3876.1,2.57991279]
[1753944224154,1.14333701,3876.2,3876.1,6.48891279]
[1753944224984,1.1433596,3876.2,3876.1,6.48891279]
[1753944225752,1.1433596,3876.2,3876.1,3.909]
[1753944226175,1.1433596,3876.2,3876.1,6.48891279]
[1753944226450,1.1433596,3876.2,3876.1,3.909]
[1753944227175,1.1433596,3876.2,3876.1,6.48891279]
[1753944228701,1.1433596,3876.2,3876.1,3.909]
[1753944230586,1.1453596,3876.2,3876.1,3.909]
[1753944232995,1.1453596,3876.2,3874.7,11.00832292]
[1753944233192,1.1433596,3876.1,3874.9,0.55]
[1753944233491,1.1433596,3876.1,3874.8,6.05153229]
[1753944233492,0.2418596,3876.0,3875.2,2.58046866]
[1753944233691,0.002,3876.2,3875.3,3.909]
[1753944233692,0.2418596,3875.9,3875.3,3.909]
[1753944234005,1.1434071,3875.8,3875.2,2.58046866]
[1753944234170,0.6959071,3875.7,3875.3,3.909]
[1753944234375,0.2419071,3875.6,3875.3,6.48943594]
[1753944234577,0.2419071,3875.5,3875.3,6.97693594]
[1753944234780,0.24187432,3875.4,3875.3,4.3965]
[1753944235159,0.24187432,3875.4,3875.3,6.97694538]
[1753944235700,0.24187432,3875.4,3875.3,4.3965]
[1753944235907,0.24187432,3875.4,3875.3,3.909]
[1753944236208,0.454,3875.7,3875.3,3.909]
[1753944236411,0.24181324,3875.6,3875.3,6.48944293]
[1753944236581,0.24181324,3875.5,3875.3,4.3965]
[1753944236906,0.454,3875.7,3875.2,2.58051197]
[1753944237057,0.24181323,3875.6,3875.3,3.909]
[1753944237261,0.24181323,3875.5,3875.3,3.909]
[1753944237519,0.454,3875.7,3875.3,4.3965]
[1753944237658,0.24178816,3875.6,3875.3,3.909]
[1753944237858,0.24178816,3875.5,3875.3,3.909]
[1753944238097,0.24178816,3875.4,3875.1,0.4875]
[1753944238399,0.24178816,3875.3,3875.2,3.909]
[1753944239681,0.24178816,3875.3,3875.2,4.3965]
[1753944240296,0.24178816,3875.3,3875.2,3.909]
[1753944241898,0.24178816,3875.3,3874.7,8.78082027]
[1753944242202,0.24178816,3875.3,3874.7,6.6875]
[1753944242203,0.21678816,3875.2,3874.7,6.6875]
[1753944242398,0.454,3875.3,3874.8,4.3965]
[1753944242600,0.454,3875.3,3874.8,0.4875]
[1753944242894,0.454,3875.2,3874.9,3.909]
[1753944243067,0.8874,3875.2,3874.7,6.2]
[1753944243272,0.8874,3875.2,3874.8,3.909]
[1753944243497,0.8874,3875.2,3874.9,3.909]
[1753944244299,0.454,3875.2,3874.9,3.909]
[1753944244665,0.8874,3875.4,3874.9,3.909]
[1753944244996,0.8874,3875.4,3875.0,3.909]
[1753944244997,0.8874,3875.3,3875.0,3.909]
[1753944245169,0.8874,3875.2,3875.1,3.909]
[1753944246266,0.8874,3875.2,3874.7,6.2]
[1753944246472,2.58044973,3875.3,3874.8,3.909]
[1753944246667,0.8874,3875.1,3874.8,3.909]
[1753944246876,0.25804497,3875.2,3874.8,3.909]
[1753944247077,0.8874,3875.0,3874.8,3.909]
[1753944247515,2.58064207,3875.1,3874.9,3.909]
[1753944247681,4.80832292,3875.6,3874.9,3.909]
[1753944247882,2.58053833,3875.2,3874.9,3.909]
[1753944248192,0.8874,3875.1,3874.9,3.909]
[1753944248583,0.8874,3875.0,3874.9,3.909]